[Event "Titled Tuesday Blitz November 07 Early 2023"]
[White "Grossboss19"]
[Black "Ovezdurdyyeva, Jemal"]
[BlackFideId "14001888"]
[WhiteElo "2491"]
[BlackElo "2365"]
[Result "1-0"]
[Round "8"]
[TimeControl "180+1"]
[Date "2023.11.07"]
[WhiteClock "0:01:07"]
[BlackClock "0:00:16"]
[Board "123"]

1. d4 {[%clk 0:03:00]}  Nf6 {[%clk 0:02:59]} 2. Nc3 {[%clk 0:03:00]}  d6 {[%clk 0:02:57]} 3. e4 {[%clk 0:02:59]}  g6 {[%clk 0:02:56]} 4. f3 {[%clk 0:02:56]}  c6 {[%clk 0:02:56]} 5. Be3 {[%clk 0:02:57]}  b5 {[%clk 0:02:56]} 6. Qd2 {[%clk 0:02:57]}  h5 {[%clk 0:02:56]} 7. a4 {[%clk 0:02:56]}  b4 {[%clk 0:02:56]} 8. Nce2 {[%clk 0:02:56]}  a5 {[%clk 0:02:56]} 9. c3 {[%clk 0:02:55]}  bxc3 {[%clk 0:02:54]} 10. bxc3 {[%clk 0:02:56]}  Bg7 {[%clk 0:02:54]} 11. Nc1 {[%clk 0:02:56]}  O-O {[%clk 0:02:54]} 12. Bd3 {[%clk 0:02:53]}  Nbd7 {[%clk 0:02:52]} 13. Nge2 {[%clk 0:02:52]}  e5 {[%clk 0:02:52]} 14. O-O {[%clk 0:02:49]}  Nb6 {[%clk 0:02:49]} 15. Qc2 {[%clk 0:02:44]}  Be6 {[%clk 0:02:46]} 16. c4 {[%clk 0:02:40]}  exd4 {[%clk 0:02:05]} 17. Nxd4 {[%clk 0:02:34]}  Bd7 {[%clk 0:02:00]} 18. Rb1 {[%clk 0:02:32]}  Nc8 {[%clk 0:01:47]} 19. c5 {[%clk 0:02:28]}  dxc5 {[%clk 0:01:39]} 20. Ndb3 {[%clk 0:02:24]}  Rb8 {[%clk 0:01:19]} 21. Nxc5 {[%clk 0:02:18]}  Rxb1 {[%clk 0:01:16]} 22. Qxb1 {[%clk 0:02:19]}  Re8 {[%clk 0:01:09]} 23. Rd1 {[%clk 0:02:09]}  Qc7 {[%clk 0:01:09]} 24. Qb7 {[%clk 0:01:54]}  Qxb7 {[%clk 0:00:52]} 25. Nxb7 {[%clk 0:01:55]}  Ne7 {[%clk 0:00:43]} 26. Nxa5 {[%clk 0:01:50]}  Ra8 {[%clk 0:00:44]} 27. Ncb3 {[%clk 0:01:45]}  Be6 {[%clk 0:00:43]} 28. Bb6 {[%clk 0:01:39]}  Nc8 {[%clk 0:00:42]} 29. Bc7 {[%clk 0:01:37]}  Bxb3 {[%clk 0:00:39]} 30. Nxb3 {[%clk 0:01:37]}  Rxa4 {[%clk 0:00:40]} 31. Nc5 {[%clk 0:01:35]}  Ra2 {[%clk 0:00:39]} 32. Bc4 {[%clk 0:01:33]}  Rc2 {[%clk 0:00:29]} 33. Rd8+ {[%clk 0:01:32]}  Bf8 {[%clk 0:00:25]} 34. Rxc8 {[%clk 0:01:17]}  Rxc4 {[%clk 0:00:23]} 35. Bd6 {[%clk 0:01:15]}  Rc1+ {[%clk 0:00:18]} 36. Kf2 {[%clk 0:01:14]}  Nh7 {[%clk 0:00:18]} 37. Bxf8 {[%clk 0:01:07]}  Nxf8 {[%clk 0:00:16]} 38. Nd7 {[%clk 0:01:07]} 1-0


[Site "https://www.chess.com"]

[Event "Titled Tuesday Blitz November 07 Early 2023"]
[White "Khater, Sherif"]
[Black "Samaganova, Aleksandra"]
[WhiteFideId "2034280"]
[BlackFideId "13800221"]
[WhiteElo "2490"]
[BlackElo "2345"]
[Result "1-0"]
[Round "8"]
[TimeControl "180+1"]
[Date "2023.11.07"]
[WhiteClock "0:00:22"]
[BlackClock "0:00:01"]
[Board "125"]

1. e4 {[%clk 0:03:00]}  c5 {[%clk 0:02:59]} 2. Nc3 {[%clk 0:03:00]}  e6 {[%clk 0:02:59]} 3. g3 {[%clk 0:03:00]}  g6 {[%clk 0:02:59]} 4. Bg2 {[%clk 0:03:01]}  Bg7 {[%clk 0:03:00]} 5. Nge2 {[%clk 0:03:02]}  Nc6 {[%clk 0:03:00]} 6. d3 {[%clk 0:03:02]}  Nge7 {[%clk 0:03:00]} 7. O-O {[%clk 0:03:02]}  O-O {[%clk 0:03:00]} 8. f4 {[%clk 0:03:03]}  d6 {[%clk 0:02:57]} 9. h3 {[%clk 0:03:03]}  Nd4 {[%clk 0:02:56]} 10. Nxd4 {[%clk 0:03:02]}  cxd4 {[%clk 0:02:56]} 11. Ne2 {[%clk 0:03:01]}  Nc6 {[%clk 0:02:52]} 12. c3 {[%clk 0:02:56]}  Rb8 {[%clk 0:02:41]} 13. cxd4 {[%clk 0:02:54]}  Nxd4 {[%clk 0:02:41]} 14. Be3 {[%clk 0:02:53]}  Nxe2+ {[%clk 0:02:38]} 15. Qxe2 {[%clk 0:02:53]}  b6 {[%clk 0:02:32]} 16. Rac1 {[%clk 0:02:50]}  Ba6 {[%clk 0:02:30]} 17. Rc2 {[%clk 0:02:38]}  Qd7 {[%clk 0:02:28]} 18. b3 {[%clk 0:02:35]}  Qb5 {[%clk 0:02:25]} 19. Rd1 {[%clk 0:02:28]}  Rbc8 {[%clk 0:02:24]} 20. Rxc8 {[%clk 0:02:23]}  Rxc8 {[%clk 0:02:23]} 21. Bf1 {[%clk 0:02:24]}  Rc3 {[%clk 0:02:13]} 22. Rd2 {[%clk 0:02:10]}  Qc6 {[%clk 0:02:02]} 23. h4 {[%clk 0:01:47]}  h5 {[%clk 0:02:01]} 24. f5 {[%clk 0:01:38]}  exf5 {[%clk 0:01:41]} 25. exf5 {[%clk 0:01:38]}  Qd5 {[%clk 0:01:38]} 26. fxg6 {[%clk 0:01:33]}  fxg6 {[%clk 0:01:39]} 27. Bg2 {[%clk 0:01:27]}  Qe5 {[%clk 0:01:24]} 28. Kh2 {[%clk 0:01:08]}  Kh7 {[%clk 0:01:09]} 29. Be4 {[%clk 0:01:02]}  Bf6 {[%clk 0:00:50]} 30. Bf4 {[%clk 0:00:51]}  Qc5 {[%clk 0:00:46]} 31. b4 {[%clk 0:00:44]}  Qb5 {[%clk 0:00:36]} 32. a4 {[%clk 0:00:44]}  Qe8 {[%clk 0:00:34]} 33. Qxh5+ {[%clk 0:00:43]}  Kg8 {[%clk 0:00:30]} 34. Bxg6 {[%clk 0:00:42]}  Qe7 {[%clk 0:00:24]} 35. Re2 {[%clk 0:00:40]}  Be5 {[%clk 0:00:23]} 36. Bg5 {[%clk 0:00:26]}  Qc7 {[%clk 0:00:14]} 37. Rf2 {[%clk 0:00:23]}  Rc2 {[%clk 0:00:10]} 38. Bf7+ {[%clk 0:00:21]}  Qxf7 {[%clk 0:00:05]} 39. Qxf7+ {[%clk 0:00:21]}  Kh8 {[%clk 0:00:05]} 40. Bf6+ {[%clk 0:00:21]}  Bxf6 {[%clk 0:00:05]} 41. Qxf6+ {[%clk 0:00:22]}  Kh7 {[%clk 0:00:01]} 42. Rxc2 {[%clk 0:00:22]} 1-0


[Site "https://www.chess.com"]

[Event "Titled Tuesday Blitz November 07 Early 2023"]
[White "Kanyamarala, Tarun"]
[Black "Modric, Nesa"]
[WhiteFideId "45004714"]
[BlackFideId "922579"]
[WhiteElo "2437"]
[BlackElo "2177"]
[Result "1-0"]
[Round "8"]
[TimeControl "180+1"]
[Date "2023.11.07"]
[WhiteClock "0:00:13"]
[BlackClock "0:00:00"]
[Board "132"]

1. d4 {[%clk 0:03:00]}  Nf6 {[%clk 0:02:59]} 2. Nf3 {[%clk 0:02:59]}  d5 {[%clk 0:02:58]} 3. Bf4 {[%clk 0:02:57]}  c5 {[%clk 0:02:59]} 4. e3 {[%clk 0:02:57]}  Nc6 {[%clk 0:02:59]} 5. Nbd2 {[%clk 0:02:56]}  cxd4 {[%clk 0:02:58]} 6. exd4 {[%clk 0:02:56]}  Bf5 {[%clk 0:02:56]} 7. Bb5 {[%clk 0:02:54]}  a6 {[%clk 0:02:43]} 8. Bxc6+ {[%clk 0:02:53]}  bxc6 {[%clk 0:02:43]} 9. c4 {[%clk 0:02:50]}  e6 {[%clk 0:02:32]} 10. c5 {[%clk 0:02:49]}  Be7 {[%clk 0:02:25]} 11. O-O {[%clk 0:02:48]}  O-O {[%clk 0:02:23]} 12. h3 {[%clk 0:02:46]}  Ne4 {[%clk 0:02:19]} 13. Ne5 {[%clk 0:02:44]}  Rc8 {[%clk 0:01:50]} 14. Qa4 {[%clk 0:02:40]}  Nxd2 {[%clk 0:01:47]} 15. Bxd2 {[%clk 0:02:36]}  Qe8 {[%clk 0:01:36]} 16. Qxa6 {[%clk 0:02:33]}  f6 {[%clk 0:01:35]} 17. Ng4 {[%clk 0:02:30]}  e5 {[%clk 0:01:28]} 18. Bc3 {[%clk 0:02:10]}  e4 {[%clk 0:01:20]} 19. Ne3 {[%clk 0:02:08]}  Bd7 {[%clk 0:01:13]} 20. f4 {[%clk 0:02:08]}  f5 {[%clk 0:01:09]} 21. Qe2 {[%clk 0:02:02]}  Bf6 {[%clk 0:01:09]} 22. b4 {[%clk 0:02:00]}  Rb8 {[%clk 0:01:08]} 23. a4 {[%clk 0:01:59]}  Kh8 {[%clk 0:01:01]} 24. Ra2 {[%clk 0:01:43]}  Rg8 {[%clk 0:01:01]} 25. Qd1 {[%clk 0:01:26]}  Qf7 {[%clk 0:00:49]} 26. Rb2 {[%clk 0:01:17]}  g5 {[%clk 0:00:48]} 27. fxg5 {[%clk 0:01:13]}  Bxg5 {[%clk 0:00:47]} 28. Ng4 {[%clk 0:01:07]}  f4 {[%clk 0:00:38]} 29. Ne5 {[%clk 0:01:07]}  Qe8 {[%clk 0:00:22]} 30. Re2 {[%clk 0:01:03]}  Bxh3 {[%clk 0:00:19]} 31. gxh3 {[%clk 0:01:00]}  f3 {[%clk 0:00:19]} 32. Rxe4 {[%clk 0:00:52]}  dxe4 {[%clk 0:00:18]} 33. Kh1 {[%clk 0:00:48]}  Bf6 {[%clk 0:00:13]} 34. Ng4 {[%clk 0:00:48]}  Rxg4 {[%clk 0:00:10]} 35. hxg4 {[%clk 0:00:48]}  Qg6 {[%clk 0:00:10]} 36. Qd2 {[%clk 0:00:32]}  Qxg4 {[%clk 0:00:10]} 37. Qh2 {[%clk 0:00:32]}  Rg8 {[%clk 0:00:07]} 38. Rg1 {[%clk 0:00:26]}  Qxg1+ {[%clk 0:00:05]} 39. Qxg1 {[%clk 0:00:26]}  Rxg1+ {[%clk 0:00:06]} 40. Kxg1 {[%clk 0:00:27]}  e3 {[%clk 0:00:06]} 41. b5 {[%clk 0:00:23]}  Bh4 {[%clk 0:00:02]} 42. bxc6 {[%clk 0:00:18]}  e2 {[%clk 0:00:03]} 43. c7 {[%clk 0:00:16]}  f2+ {[%clk 0:00:04]} 44. Kh2 {[%clk 0:00:15]}  f1=N+ {[%clk 0:00:00]} 45. Kg2 {[%clk 0:00:13]} 1-0


[Site "https://www.chess.com"]

[Event "Titled Tuesday Blitz November 07 Early 2023"]
[White "Ionescu, Mihai"]
[Black "Dahlgren, James Allen"]
[WhiteFideId "1202499"]
[BlackFideId "22256873"]
[WhiteElo "2449"]
[BlackElo "2130"]
[Result "1-0"]
[Round "8"]
[TimeControl "180+1"]
[Date "2023.11.07"]
[WhiteClock "0:02:14"]
[BlackClock "0:02:19"]
[Board "134"]

1. Nf3 {[%clk 0:03:00]}  e6 {[%clk 0:03:00]} 2. d4 {[%clk 0:02:59]}  c5 {[%clk 0:03:01]} 3. c4 {[%clk 0:02:58]}  cxd4 {[%clk 0:03:01]} 4. Nxd4 {[%clk 0:02:59]}  Nc6 {[%clk 0:03:02]} 5. g3 {[%clk 0:02:58]}  Nf6 {[%clk 0:03:03]} 6. Bg2 {[%clk 0:02:58]}  Bb4+ {[%clk 0:03:03]} 7. Nc3 {[%clk 0:02:56]}  O-O {[%clk 0:03:04]} 8. O-O {[%clk 0:02:56]}  Bxc3 {[%clk 0:03:03]} 9. bxc3 {[%clk 0:02:56]}  a6 {[%clk 0:03:01]} 10. Nxc6 {[%clk 0:02:48]}  dxc6 {[%clk 0:02:57]} 11. Ba3 {[%clk 0:02:41]}  Qxd1 {[%clk 0:02:54]} 12. Rfxd1 {[%clk 0:02:39]}  Re8 {[%clk 0:02:55]} 13. Rab1 {[%clk 0:02:29]}  Bd7 {[%clk 0:02:40]} 14. Rxb7 {[%clk 0:02:26]}  Rab8 {[%clk 0:02:31]} 15. Rdxd7 {[%clk 0:02:16]}  Rxb7 {[%clk 0:02:19]} 16. Rxb7 {[%clk 0:02:14]} 1-0


[Site "https://www.chess.com"]

[Event "Titled Tuesday Blitz November 07 Early 2023"]
[White "Marcziter, Dmitrii"]
[Black "Tharushi, T H D Niklesha"]
[WhiteFideId "13900765"]
[BlackFideId "9918264"]
[WhiteElo "2392"]
[BlackElo "2275"]
[Result "0-1"]
[Round "8"]
[TimeControl "180+1"]
[Date "2023.11.07"]
[WhiteClock "0:00:00"]
[BlackClock "0:00:18"]
[Board "139"]

1. d4 {[%clk 0:02:50]}  Nf6 {[%clk 0:02:59]} 2. c4 {[%clk 0:02:49]}  e6 {[%clk 0:02:59]} 3. Nf3 {[%clk 0:02:48]}  Bb4+ {[%clk 0:02:59]} 4. Nbd2 {[%clk 0:02:47]}  Qe7 {[%clk 0:02:56]} 5. a3 {[%clk 0:02:47]}  Bxd2+ {[%clk 0:02:55]} 6. Bxd2 {[%clk 0:02:48]}  d6 {[%clk 0:02:56]} 7. Bg5 {[%clk 0:02:44]}  h6 {[%clk 0:02:54]} 8. Bh4 {[%clk 0:02:42]}  g5 {[%clk 0:02:51]} 9. Bg3 {[%clk 0:02:42]}  Ne4 {[%clk 0:02:52]} 10. Qc2 {[%clk 0:02:39]}  f5 {[%clk 0:02:51]} 11. e3 {[%clk 0:02:39]}  Nd7 {[%clk 0:02:38]} 12. Nd2 {[%clk 0:02:35]}  Ndf6 {[%clk 0:02:37]} 13. f3 {[%clk 0:02:31]}  Nxg3 {[%clk 0:02:35]} 14. hxg3 {[%clk 0:02:32]}  e5 {[%clk 0:02:36]} 15. d5 {[%clk 0:02:16]}  e4 {[%clk 0:02:30]} 16. f4 {[%clk 0:02:15]}  Ng4 {[%clk 0:02:29]} 17. Qc3 {[%clk 0:02:12]}  Rg8 {[%clk 0:02:23]} 18. Be2 {[%clk 0:02:09]}  gxf4 {[%clk 0:02:20]} 19. gxf4 {[%clk 0:02:07]}  Bd7 {[%clk 0:02:08]} 20. Bxg4 {[%clk 0:01:58]}  Rxg4 {[%clk 0:02:08]} 21. O-O-O {[%clk 0:01:57]}  O-O-O {[%clk 0:01:55]} 22. Rxh6 {[%clk 0:01:53]}  Rxg2 {[%clk 0:01:54]} 23. Rdh1 {[%clk 0:01:52]}  Qg7 {[%clk 0:01:41]} 24. Qxg7 {[%clk 0:01:47]}  Rxg7 {[%clk 0:01:41]} 25. Rh8 {[%clk 0:01:36]}  c6 {[%clk 0:01:41]} 26. Rxd8+ {[%clk 0:01:35]}  Kxd8 {[%clk 0:01:41]} 27. Nb3 {[%clk 0:01:22]}  Rg3 {[%clk 0:01:34]} 28. Kd2 {[%clk 0:01:14]}  Rg2+ {[%clk 0:01:33]} 29. Kc3 {[%clk 0:01:14]}  Re2 {[%clk 0:01:32]} 30. Rh3 {[%clk 0:01:13]}  c5 {[%clk 0:01:29]} 31. Nc1 {[%clk 0:01:10]}  Rg2 {[%clk 0:01:23]} 32. b4 {[%clk 0:01:05]}  b6 {[%clk 0:01:20]} 33. bxc5 {[%clk 0:01:02]}  bxc5 {[%clk 0:01:20]} 34. Nb3 {[%clk 0:01:02]}  Rg1 {[%clk 0:01:14]} 35. Na5 {[%clk 0:00:56]}  Kc7 {[%clk 0:01:13]} 36. Rh7 {[%clk 0:00:45]}  Rg3 {[%clk 0:01:06]} 37. Kd2 {[%clk 0:00:44]}  Rg2+ {[%clk 0:01:06]} 38. Kd1 {[%clk 0:00:37]}  Ra2 {[%clk 0:00:59]} 39. Nc6 {[%clk 0:00:33]}  Rb2 {[%clk 0:00:39]} 40. Nxa7 {[%clk 0:00:29]}  Rb7 {[%clk 0:00:31]} 41. Nb5+ {[%clk 0:00:28]}  Kb6 {[%clk 0:00:29]} 42. Nxd6 {[%clk 0:00:28]}  Ba4+ {[%clk 0:00:29]} 43. Kd2 {[%clk 0:00:27]}  Rxh7 {[%clk 0:00:30]} 44. Nxf5 {[%clk 0:00:27]}  Rh2+ {[%clk 0:00:29]} 45. Ke1 {[%clk 0:00:27]}  Bc2 {[%clk 0:00:26]} 46. Ne7 {[%clk 0:00:23]}  Bd3 {[%clk 0:00:25]} 47. d6 {[%clk 0:00:21]}  Bxc4 {[%clk 0:00:19]} 48. d7 {[%clk 0:00:18]}  Kc7 {[%clk 0:00:19]} 49. f5 {[%clk 0:00:08]}  Kxd7 {[%clk 0:00:19]} 50. f6 {[%clk 0:00:09]}  Re2+ {[%clk 0:00:19]} 51. Kd1 {[%clk 0:00:08]}  Rf2 {[%clk 0:00:20]} 52. Ng6 {[%clk 0:00:00]}  Ke6 {[%clk 0:00:18]} 0-1


[Site "https://www.chess.com"]

[Event "Titled Tuesday Blitz November 07 Early 2023"]
[White "TheAlienParty"]
[Black "FuenfgegenWilly"]
[WhiteElo "2246"]
[BlackElo "2383"]
[Result "0-1"]
[Round "8"]
[TimeControl "180+1"]
[Date "2023.11.07"]
[WhiteClock "0:01:08"]
[BlackClock "0:00:46"]
[Board "140"]

1. c4 {[%clk 0:02:55]}  Nf6 {[%clk 0:02:57]} 2. Nc3 {[%clk 0:02:54]}  e5 {[%clk 0:02:56]} 3. Nf3 {[%clk 0:02:53]}  Nc6 {[%clk 0:02:56]} 4. e4 {[%clk 0:02:52]}  Bc5 {[%clk 0:02:50]} 5. Nxe5 {[%clk 0:02:51]}  Qe7 {[%clk 0:02:51]} 6. Nxc6 {[%clk 0:02:48]}  dxc6 {[%clk 0:02:52]} 7. d3 {[%clk 0:02:48]}  Be6 {[%clk 0:02:45]} 8. Be2 {[%clk 0:02:46]}  O-O-O {[%clk 0:02:43]} 9. Qa4 {[%clk 0:02:43]}  Ng4 {[%clk 0:02:38]} 10. Bxg4 {[%clk 0:02:41]}  Bxg4 {[%clk 0:02:39]} 11. h3 {[%clk 0:02:35]}  Bh5 {[%clk 0:02:16]} 12. Qc2 {[%clk 0:02:33]}  Qd7 {[%clk 0:01:57]} 13. g4 {[%clk 0:02:32]}  Bg6 {[%clk 0:01:56]} 14. f4 {[%clk 0:02:26]}  f6 {[%clk 0:01:52]} 15. f5 {[%clk 0:02:25]}  Bf7 {[%clk 0:01:52]} 16. Bd2 {[%clk 0:02:14]}  Qxd3 {[%clk 0:01:45]} 17. Qxd3 {[%clk 0:02:12]}  Rxd3 {[%clk 0:01:46]} 18. b3 {[%clk 0:02:08]}  Bb4 {[%clk 0:01:30]} 19. Nb1 {[%clk 0:02:03]}  Bd6 {[%clk 0:01:27]} 20. Ke2 {[%clk 0:02:00]}  Rg3 {[%clk 0:01:26]} 21. Be3 {[%clk 0:01:54]}  Be5 {[%clk 0:01:24]} 22. Nd2 {[%clk 0:01:53]}  Bxa1 {[%clk 0:01:14]} 23. Rxa1 {[%clk 0:01:51]}  Rxh3 {[%clk 0:01:14]} 24. Kf2 {[%clk 0:01:50]}  Rd8 {[%clk 0:01:12]} 25. Nf3 {[%clk 0:01:46]}  h5 {[%clk 0:01:09]} 26. g5 {[%clk 0:01:40]}  h4 {[%clk 0:01:01]} 27. g6 {[%clk 0:01:38]}  Be8 {[%clk 0:00:59]} 28. Bf4 {[%clk 0:01:30]}  Rd3 {[%clk 0:00:55]} 29. Be3 {[%clk 0:01:22]}  c5 {[%clk 0:00:53]} 30. Ne1 {[%clk 0:01:18]}  Rdxe3 {[%clk 0:00:49]} 31. Ng2 {[%clk 0:01:17]}  Ref3+ {[%clk 0:00:46]} 32. Kg1 {[%clk 0:01:17]}  Bc6 {[%clk 0:00:47]} 33. Re1 {[%clk 0:01:15]}  Rhg3 {[%clk 0:00:47]} 34. Kh2 {[%clk 0:01:08]}  Rf2 {[%clk 0:00:46]} 0-1


[Site "https://www.chess.com"]

[Event "Titled Tuesday Blitz November 07 Early 2023"]
[White "Mirza, Diana"]
[Black "Mejia, Cherry Ann"]
[WhiteFideId "2503999"]
[BlackFideId "5206880"]
[WhiteElo "1986"]
[BlackElo "2367"]
[Result "1/2-1/2"]
[Round "8"]
[TimeControl "180+1"]
[Date "2023.11.07"]
[WhiteClock "0:00:12"]
[BlackClock "0:00:14"]
[Board "143"]

1. e4 {[%clk 0:03:00]}  c5 {[%clk 0:02:59]} 2. Nf3 {[%clk 0:03:00]}  Nc6 {[%clk 0:02:59]} 3. d4 {[%clk 0:02:59]}  cxd4 {[%clk 0:02:59]} 4. Nxd4 {[%clk 0:03:00]}  Qb6 {[%clk 0:03:00]} 5. Nxc6 {[%clk 0:02:54]}  bxc6 {[%clk 0:03:00]} 6. Bd3 {[%clk 0:02:51]}  Nf6 {[%clk 0:03:00]} 7. O-O {[%clk 0:02:51]}  e5 {[%clk 0:03:00]} 8. Nc3 {[%clk 0:02:46]}  Bb4 {[%clk 0:02:58]} 9. Be3 {[%clk 0:02:45]}  Qc7 {[%clk 0:02:55]} 10. Ne2 {[%clk 0:02:35]}  O-O {[%clk 0:02:54]} 11. c3 {[%clk 0:02:34]}  Be7 {[%clk 0:02:54]} 12. Ng3 {[%clk 0:02:34]}  d5 {[%clk 0:02:53]} 13. exd5 {[%clk 0:02:26]}  cxd5 {[%clk 0:02:53]} 14. Bf5 {[%clk 0:02:27]}  Be6 {[%clk 0:02:46]} 15. Bg5 {[%clk 0:02:04]}  Qb6 {[%clk 0:02:27]} 16. Rb1 {[%clk 0:01:48]}  h6 {[%clk 0:02:23]} 17. Be3 {[%clk 0:01:46]}  Bc5 {[%clk 0:02:09]} 18. Bxc5 {[%clk 0:01:45]}  Qxc5 {[%clk 0:02:10]} 19. Bxe6 {[%clk 0:01:45]}  fxe6 {[%clk 0:02:10]} 20. Nh5 {[%clk 0:01:44]}  Nxh5 {[%clk 0:02:06]} 21. Qxh5 {[%clk 0:01:45]}  Rf5 {[%clk 0:02:06]} 22. Qg6 {[%clk 0:01:42]}  Rf6 {[%clk 0:02:06]} 23. Qg3 {[%clk 0:01:41]}  e4 {[%clk 0:01:59]} 24. b4 {[%clk 0:01:32]}  Qb6 {[%clk 0:01:56]} 25. a4 {[%clk 0:01:17]}  Raf8 {[%clk 0:01:55]} 26. a5 {[%clk 0:01:16]}  Qc6 {[%clk 0:01:45]} 27. Rbd1 {[%clk 0:00:59]}  Rf4 {[%clk 0:01:34]} 28. Qe3 {[%clk 0:00:53]}  a6 {[%clk 0:01:32]} 29. Qb6 {[%clk 0:00:44]}  Qxb6 {[%clk 0:01:30]} 30. axb6 {[%clk 0:00:45]}  Rb8 {[%clk 0:01:31]} 31. g3 {[%clk 0:00:37]}  Rf3 {[%clk 0:01:30]} 32. c4 {[%clk 0:00:34]}  Rxb6 {[%clk 0:01:28]} 33. cxd5 {[%clk 0:00:33]}  exd5 {[%clk 0:01:29]} 34. Rxd5 {[%clk 0:00:33]}  Rxb4 {[%clk 0:01:29]} 35. Ra5 {[%clk 0:00:28]}  Rb6 {[%clk 0:01:29]} 36. Rfa1 {[%clk 0:00:26]}  Rbf6 {[%clk 0:01:20]} 37. R1a2 {[%clk 0:00:16]}  Kf7 {[%clk 0:01:17]} 38. Rxa6 {[%clk 0:00:16]}  Rxa6 {[%clk 0:01:12]} 39. Rxa6 {[%clk 0:00:17]}  e3 {[%clk 0:01:12]} 40. Ra7+ {[%clk 0:00:16]}  Kg6 {[%clk 0:01:11]} 41. Ra6+ {[%clk 0:00:16]}  Kf5 {[%clk 0:01:09]} 42. fxe3 {[%clk 0:00:16]}  Rxe3 {[%clk 0:01:09]} 43. Kg2 {[%clk 0:00:17]}  Rb3 {[%clk 0:01:08]} 44. Kh3 {[%clk 0:00:17]}  h5 {[%clk 0:01:08]} 45. Ra5+ {[%clk 0:00:16]}  Kg6 {[%clk 0:01:07]} 46. Kh4 {[%clk 0:00:16]}  Rb2 {[%clk 0:01:05]} 47. h3 {[%clk 0:00:16]}  Rb4+ {[%clk 0:01:02]} 48. g4 {[%clk 0:00:16]}  hxg4 {[%clk 0:01:02]} 49. hxg4 {[%clk 0:00:17]}  Kf6 {[%clk 0:01:02]} 50. Rf5+ {[%clk 0:00:17]}  Kg6 {[%clk 0:01:01]} 51. Rg5+ {[%clk 0:00:17]}  Kh6 {[%clk 0:01:02]} 52. Rh5+ {[%clk 0:00:17]}  Kg6 {[%clk 0:01:02]} 53. Rg5+ {[%clk 0:00:18]}  Kf7 {[%clk 0:01:03]} 54. Rf5+ {[%clk 0:00:19]}  Ke6 {[%clk 0:01:03]} 55. Kg5 {[%clk 0:00:18]}  Ke7 {[%clk 0:00:54]} 56. Re5+ {[%clk 0:00:18]}  Kf7 {[%clk 0:00:54]} 57. Rf5+ {[%clk 0:00:18]}  Kg8 {[%clk 0:00:54]} 58. Rd5 {[%clk 0:00:15]}  Kf7 {[%clk 0:00:50]} 59. Rf5+ {[%clk 0:00:15]}  Kg8 {[%clk 0:00:50]} 60. Rd5 {[%clk 0:00:16]}  Kh7 {[%clk 0:00:50]} 61. Kh5 {[%clk 0:00:11]}  Rb1 {[%clk 0:00:47]} 62. Kg5 {[%clk 0:00:11]}  Ra1 {[%clk 0:00:47]} 63. Rf5 {[%clk 0:00:11]}  Ra7 {[%clk 0:00:45]} 64. Re5 {[%clk 0:00:12]}  Rb7 {[%clk 0:00:44]} 65. Rd5 {[%clk 0:00:12]}  Rf7 {[%clk 0:00:42]} 66. Re5 {[%clk 0:00:12]}  Rf6 {[%clk 0:00:40]} 67. Rd5 {[%clk 0:00:13]}  Rg6+ {[%clk 0:00:40]} 68. Kf5 {[%clk 0:00:12]}  Kh6 {[%clk 0:00:38]} 69. Kf4 {[%clk 0:00:10]}  Ra6 {[%clk 0:00:37]} 70. Rh5+ {[%clk 0:00:10]}  Kg6 {[%clk 0:00:37]} 71. Rg5+ {[%clk 0:00:10]}  Kf6 {[%clk 0:00:37]} 72. Rf5+ {[%clk 0:00:10]}  Ke6 {[%clk 0:00:37]} 73. Re5+ {[%clk 0:00:10]}  Kf7 {[%clk 0:00:37]} 74. Rf5+ {[%clk 0:00:11]}  Kg8 {[%clk 0:00:37]} 75. Rd5 {[%clk 0:00:10]}  Rf6+ {[%clk 0:00:35]} 76. Rf5 {[%clk 0:00:10]}  Ra6 {[%clk 0:00:34]} 77. Rd5 {[%clk 0:00:10]}  Kh7 {[%clk 0:00:33]} 78. Ke5 {[%clk 0:00:10]}  Kg6 {[%clk 0:00:31]} 79. Kf4 {[%clk 0:00:09]}  Rf6+ {[%clk 0:00:30]} 80. Kg3 {[%clk 0:00:10]}  Ra6 {[%clk 0:00:26]} 81. Kh4 {[%clk 0:00:10]}  Ra1 {[%clk 0:00:25]} 82. Rg5+ {[%clk 0:00:10]}  Kh7 {[%clk 0:00:24]} 83. Rd5 {[%clk 0:00:09]}  Kh6 {[%clk 0:00:21]} 84. Rh5+ {[%clk 0:00:09]}  Kg6 {[%clk 0:00:21]} 85. Re5 {[%clk 0:00:10]}  Kf6 {[%clk 0:00:21]} 86. Rf5+ {[%clk 0:00:10]}  Ke6 {[%clk 0:00:21]} 87. Rg5 {[%clk 0:00:10]}  Kf7 {[%clk 0:00:20]} 88. Rf5+ {[%clk 0:00:10]}  Kg8 {[%clk 0:00:20]} 89. Re5 {[%clk 0:00:10]}  Rh1+ {[%clk 0:00:19]} 90. Kg5 {[%clk 0:00:11]}  Kh7 {[%clk 0:00:19]} 91. Re7 {[%clk 0:00:10]}  Rh6 {[%clk 0:00:18]} 92. Re5 {[%clk 0:00:10]}  Rg6+ {[%clk 0:00:18]} 93. Kh5 {[%clk 0:00:10]}  Rh6+ {[%clk 0:00:17]} 94. Kg5 {[%clk 0:00:11]}  Ra6 {[%clk 0:00:17]} 95. Kh5 {[%clk 0:00:11]}  Ra1 {[%clk 0:00:15]} 96. Kg5 {[%clk 0:00:12]}  Ra6 {[%clk 0:00:14]} 97. Rd5 {[%clk 0:00:12]}  Rb6 {[%clk 0:00:14]} 98. Rf5 {[%clk 0:00:12]}  Rg6+ {[%clk 0:00:14]} 99. Kh5 {[%clk 0:00:12]} 1/2-1/2


[Site "https://www.chess.com"]